Cogmind - Beta 9 *** ADVENTURER MODE // 2019.10.25 @ 16:42:37 Player: Snowflake Result: Destroyed by CO-RO5(z) with Makeshift Sword Performance ------------- Evolutions (1) 500 Regions Visited (4) 800 Robots Destroyed (18) 90 Value Destroyed (565) 565 Prototype IDs (0) 0 Alien Tech Used (0) 0 Bonus (266) 266 TOTAL SCORE: 2221 Bonus ------- Met Imprinter 300 Friendly Fire -34 Cogmind --------- Core Integrity 0/400 Matter 188/300 Energy 100/100 System Corruption 1% Temperature Cool (0) Location -7/Zion Parts ------- Power (1) Propulsion (3) Makeshift Leg Utility (3) Large Storage Unit Large Storage Unit Propulsion Shielding Weapon (2) Shotgun Shotgun Inventory (16) Improved Ion Engine Heat Sink Large Storage Unit Hardened Light Armor Plating Beam Rifle Beam Rifle Heavy Assault Rifle EMP Blaster Proton Bomb Trap Proton Bomb Trap Peak State ------------ Power Improved Ion Engine Propulsion Aluminum Leg Aluminum Leg Utility Large Storage Unit Large Storage Unit Light Armor Plating Weapon Heavy Assault Rifle Heavy Assault Rifle Inventory Improved Ion Engine Improved Ion Engine Heat Sink Medium Storage Unit Medium Storage Unit Large Storage Unit Beam Rifle Light Assault Rifle Shotgun Shotgun Shotgun Flail Proton Bomb Trap Proton Bomb Trap Proton Bomb Trap Proton Bomb Trap [Rating: 14] Favorites ----------- Power Improved Ion Engine Engine Improved Ion Engine Propulsion Aluminum Leg Leg Aluminum Leg Utility Large Storage Unit Device Heat Sink Storage Large Storage Unit Protection Light Armor Plating Weapon Heavy Assault Rifle Energy Gun EM Pulse Gun Ballistic Gun Heavy Assault Rifle Launcher Rocket Launcher Special Weapon Enhanced Flamer Impact Weapon Flail Piercing Weapon Makeshift Spear Build | -11 -10 -9 -9 -7 ------- Run | Scr Mat Mat Min Zio Slots Evolved 2 | . . 2 . . Power . | . . . . . Propulsion 1 | . . 1 . . Utility 1 | . . 1 . . Weapon . | . . . . . Parts Attached 29 | 7 2 10 2 8 Power 3 | 1 . 1 . 1 Engine 3 | 1 . 1 . 1 Core . | . . . . . Reactor . | . . . . . Propulsion 3 | 2 . . . 1 Treads . | . . . . . Leg 3 | 2 . . . 1 Wheel . | . . . . . Hover . | . . . . . Flight . | . . . . . Utility 8 | 1 2 2 2 1 Device 1 | 1 . . . . Storage 5 | . 2 1 2 . Processor . | . . . . . Hackware . | . . . . . Protection 2 | . . 1 . 1 Artifact . | . . . . . Weapon 15 | 3 . 7 . 5 Energy Gun 5 | 3 . 2 . . Energy Cannon . | . . . . . Ballistic Gun 5 | . . 3 . 2 Ballistic Cannon . | . . . . . Launcher 1 | . . . . 1 Special Weapon 1 | . . . . 1 Impact Weapon 2 | . . 2 . . Slashing Weapon . | . . . . . Piercing Weapon 1 | . . . . 1 Special Melee Weapon . | . . . . . Unidentified Prototypes . | . . . . . Parts Lost 9 | . . . . 9 Power 2 | . . . . 2 Propulsion 2 | . . . . 2 Utility 1 | . . . . 1 Weapon 4 | . . . . 4 Highest Loss Streak 9 | . . . . 9 Average Slot Usage (%) 86 | . 99 83 88 83 Engine 10 | . 14 11 11 9 Leg 21 | . 28 22 22 19 Storage 22 | . 27 22 22 22 Protection 9 | . . 6 11 10 Energy Gun 4 | . 28 8 . . Ballistic Gun 17 | . . 12 22 21 Naked Turns . | . . . . . Heaviest Build 48 | 8 19 32 48 48 Greatest Support 20 | 20 20 20 20 20 Greatest Overweight (x) 14 | . . 1 2 14 Average Overweight (x) 1 | . . . 1 2 Largest Inventory Capacity 16 | 4 10 12 16 16 Average Capacity 13 | 4 9 11 15 16 Most Carried 16 | 3 9 12 16 16 Average Carried 13 | . 7 10 15 15 Final Capacity 16 | . . . . 16 Final Carried 10 | . . . . 10 Class Distribution -------------------- 66% | Scavenger-Mutant 33% | Mutant Dominant Class ---------------- Mutant | -10/Materials Mutant | -9/Materials Scavenger-Mutant | -9/Mines Scavenger-Mutant | -7/Zion Resources | -11 -10 -9 -9 -7 ----------- Run | Scr Mat Mat Min Zio Matter Collected 498 | 270 20 112 35 61 Remotely . | . . . . . Salvage Created 551 | 34 137 112 120 148 Parts 34 | 3 14 7 8 2 Haulers Intercepted . | . . . . . Recyclers Shooed 4 | . 4 . . . Parts Field Recycled . | . . . . . Retrieved Matter . | . . . . . Parts Self-Destructed . | . . . . . Prevented . | . . . . . Kills | -11 -10 -9 -9 -7 ------- Run | Scr Mat Mat Min Zio Combat Hostiles Destroyed 13 | 1 4 2 2 4 Guns 10 | 1 4 2 1 2 Cannons 1 | . . . . 1 AOE 2 | . . . 1 1 Classes Destroyed 7 | 1 3 1 . 2 Worker 1 | . 1 . . . Watcher 1 | . 1 . . . Swarmer 3 | . 3 . . . Grunt 2 | 1 1 . . . Sentry 4 | . . 2 2 . Zionite 3 | . . . . 3 Mutant 4 | . . . . 4 Best Kill Streak 5 | 1 4 1 2 5 Combat Bots Only 4 | 1 3 1 2 4 Max Kills in Single Turn 1 | 1 1 1 1 1 Gunslinging . | . . . . . Exploded 1 | . . . 1 1 Melee . | . . . . . Uniques/NPCs Destroyed . | . . . . . Combat | -11 -10 -9 -9 -7 -------- Run | Scr Mat Mat Min Zio Damage Taken 1615 | 25 86 105 286 1113 Core 450 | 8 36 21 58 327 Absorbed by Shields . | . . . . . Core Remaining (%) 89 | 96 82 . . . Volleys Fired 47 | 3 14 8 3 19 Largest 2 | 2 2 2 2 2 Hottest 90 | 90 90 80 46 80 Shots Fired 82 | 6 27 12 6 31 Gun 75 | 6 27 12 6 24 Cannon . | . . . . . Launcher 4 | . . . . 4 Special 3 | . . . . 3 Kinetic 36 | . . 6 6 24 Thermal 21 | 3 14 1 . 3 Explosive 4 | . . . . 4 Electromagnetic 21 | 3 13 5 . . Robot Hit Streak 23 | 5 12 18 8 23 Robot Miss Streak 2 | 1 2 2 . 2 Penetration Max . | . . . . . Secondary Targets . | . . . . . Shots Hit Robots 72 | 5 23 9 5 30 Core Hits 43 | 2 10 4 3 24 Critical Hits . | . . . . . Critical Kills . | . . . . . Critical Parts Destroyed . | . . . . . Melee Attacks . | . . . . . Impact . | . . . . . Slashing . | . . . . . Piercing . | . . . . . Sneak Attacks . | . . . . . Combat Hostiles . | . . . . . Follow-up Attacks . | . . . . . Damage Inflicted 1833 | 69 355 96 156 1157 Guns 885 | 69 308 96 71 341 Cannons . | . . . . . Explosions 913 | . 47 . 84 782 Melee . | . . . . . Ramming 1 | . . . 1 . Kinetic 446 | . . 34 71 341 Thermal 278 | 39 195 10 . 34 Explosive 782 | . . . . 782 Electromagnetic 326 | 30 160 52 84 . Impact . | . . . . . Slashing . | . . . . . Piercing . | . . . . . Highest Corruption 1 | . . . . 1 Average Corruption 1 | . . . . 1 Corruption Purged . | . . . . . Effects 1 | . . . . 1 Message Errors 1 | . . . . 1 Overload Shots . | . . . . . Overflow Damage 25 | . . . . 25 Projectiles 6 | . . . . 6 Explosions 19 | . . . . 19 Melee . | . . . . . Knockbacks . | . . . . . Impact . | . . . . . Kinetic . | . . . . . Secondary . | . . . . . Self-Inflicted Damage 126 | . 20 . . 106 Shots 5 | . 1 . . 4 Rammed . | . . . . . Targets Rammed 1 | . . . 1 . Kicked 1 | . . . 1 . Crushed . | . . . . . Highest Temperature 174 | 102 174 26 . 70 Average Temperature 60 | 53 79 11 . 37 Received Heat Transfer 458 | 18 18 45 117 260 Siege Activations . | . . . . . Robots Corrupted . | . . . . . Combat Hostiles . | . . . . . Parts Fried 1 | . . 1 . . Impact Corruptions . | . . . . . Robots Melted . | . . . . . Combat Hostiles . | . . . . . Parts Melted . | . . . . . Heat Transferred 820 | 111 444 25 . 240 Parts Sabotaged . | . . . . . Parts Stolen . | . . . . . Parts Stripped . | . . . . . Power Chain Reactions 1 | . 1 . . . Missiles Intercepted . | . . . . . Alert | -11 -10 -9 -9 -7 ------- Run | Scr Mat Mat Min Zio Peak Influence 137 | 20 132 137 100 . Average Influence 54 | 2 57 89 45 . Maximum Alert Level . | . . . . . Low Security (%) 100 | . . . . . Level 1 . | . . . . . Level 2 . | . . . . . Level 3 . | . . . . . Level 4 . | . . . . . Level 5 . | . . . . . High Security . | . . . . . Max Security . | . . . . . Squads Dispatched 2 | . . 2 . . Investigation . | . . . . . Extermination . | . . . . . Reinforcement 2 | . . 2 . . Assault . | . . . . . Garrison . | . . . . . Intercept . | . . . . . Construction Impeded . | . . . . . Haulers Reinforced . | . . . . . Stealth | -11 -10 -9 -9 -7 --------- Run | Scr Mat Mat Min Zio Distress Signals 1 | . 1 . . . Communications Jammed . | . . . . . Distress Signals . | . . . . . Times Spotted 26 | 1 8 2 2 13 Peak Tracking Total 9 | 1 3 1 2 9 Tactical Retreats 2 | . . . . 2 Traps | -11 -10 -9 -9 -7 ------- Run | Scr Mat Mat Min Zio Traps Triggered . | . . . . . Indirectly . | . . . . . Trap Hack Attempts . | . . . . . Triggered . | . . . . . Disarmed . | . . . . . Reprogrammed . | . . . . . Reused 2 | . . . 2 . Traps Extracted . | . . . . . Installed 3 | . . . 3 . Triggered 2 | . . . 2 . Machines | -11 -10 -9 -9 -7 ---------- Run | Scr Mat Mat Min Zio Machines Disabled 1 | . . . 1 . Max in Single Turn 1 | . . . 1 . Machines Sabotaged . | . . . . . Garrisons Compromised . | . . . . . Overloaded Fab Kills . | . . . . . Fab Network Shutdowns . | . . . . . Hacking | -11 -10 -9 -9 -7 --------- Run | Scr Mat Mat Min Zio Machines Accessed 2 | . 2 . . . Terminals 1 | . 1 . . . Fabricators . | . . . . . Repair Stations . | . . . . . Recycling Units 1 | . 1 . . . Scanalyzers . | . . . . . Garrison Access . | . . . . . Total Hacks 4 | . 4 . . . Successful 3 | . 3 . . . Failed 1 | . 1 . . . Catastrophic . | . . . . . Database Lockouts . | . . . . . Manual . | . . . . . Terminals 2 | . 2 . . . Fabricators . | . . . . . Repair Stations . | . . . . . Recycling Units 2 | . 2 . . . Scanalyzers . | . . . . . Garrison Access . | . . . . . Terminal Hacks 2 | . 2 . . . Record 1 | . 1 . . . Terminal Index 1 | . 1 . . . Fabricator Hacks . | . . . . . Repair Station Hacks . | . . . . . Recycling Unit Hacks 1 | . 1 . . . Report Inventory 1 | . 1 . . . Scanalyzer . | . . . . . Garrison Access Hacks . | . . . . . Unauthorized Hacks . | . . . . . Terminals . | . . . . . Fabricators . | . . . . . Repair Stations . | . . . . . Recycling Units . | . . . . . Scanalyzers . | . . . . . Garrison Access . | . . . . . Data Cores Recovered . | . . . . . Used . | . . . . . Hacking Detections 2 | . 2 . . . Full Trace Events . | . . . . . Feedback Events . | . . . . . Feedback Blocked . | . . . . . Robot Schematics Acquired . | . . . . . Robots Built . | . . . . . Matter . | . . . . . Time . | . . . . . Total Robot Build Rating . | . . . . . Part Schematics Acquired . | . . . . . Parts Built . | . . . . . Matter . | . . . . . Time . | . . . . . Total Part Build Rating . | . . . . . Parts Repaired . | . . . . . Time . | . . . . . Parts Recycled . | . . . . . Recycled Matter . | . . . . . Retrieved Matter . | . . . . . Retrieved Components . | . . . . . Parts Scanalyzed . | . . . . . Part Schematics Acquired . | . . . . . Parts Damaged . | . . . . . Bothacking | -11 -10 -9 -9 -7 ------------ Run | Scr Mat Mat Min Zio Used RIF Installer . | . . . . . Robots Hacked . | . . . . . Non-combat . | . . . . . Combat . | . . . . . Robot Hacks Applied . | . . . . . Relay Couplers Released . | . . . . . Robots Rewired . | . . . . . Allies Hacked . | . . . . . Hacks Repelled . | . . . . . Allies | -11 -10 -9 -9 -7 -------- Run | Scr Mat Mat Min Zio Total Allies . | . . . . . Largest Group . | . . . . . Highest-Rated Group . | . . . . . Highest-Rated Ally . | . . . . . Total Orders . | . . . . . Ally Attacks . | . . . . . Total Damage . | . . . . . Kills . | . . . . . Allies Corrupted . | . . . . . Allies Melted . | . . . . . Intel | -11 -10 -9 -9 -7 ------- Run | Scr Mat Mat Min Zio Robot Analysis Total . | . . . . . Derelict Logs Recovered 2 | . . . 1 1 Drone Launches . | . . . . . Drone Recoveries . | . . . . . Exploration | -11 -10 -9 -9 -7 ------------- Run | Scr Mat Mat Min Zio Turns Passed 1856 | 89 206 283 573 705 Spaces Moved 991 | 64 126 157 298 346 Core 18 | 14 . . . 4 Treads . | . . . . . Legs 973 | 50 126 157 298 342 Wheels . | . . . . . Hover . | . . . . . Flight . | . . . . . Fastest Speed 50 | 50 120 120 150 170 Average Speed 162 | 104 120 137 179 185 Slowest Speed 750 | 120 120 150 180 750 Overloaded Moves . | . . . . . Propulsion Burnouts . | . . . . . Robots Hopped . | . . . . . Cave-ins Triggered . | . . . . . Exploration Rate (%) 30 | 7 27 13 52 51 Regions Visited 4 Branch Regions 2 Pre-discovered Areas 1 | . . . . 1 Known Exits Taken . | . . . . . Unknown Exits Taken 4 | 1 1 1 1 . Scrap Searched 3 | . . . . 3 Spaces Dug . | . . . . . Terrain Destroyed 5 | . 5 . . . Melee . | . . . . . Projectile . | . . . . . AOE 5 | . 5 . . . Actions | -11 -10 -9 -9 -7 --------- Run | Scr Mat Mat Min Zio Total 1152 | 76 153 213 332 378 Wait 36 | . 6 19 8 3 Move 987 | 63 125 156 297 346 Hop . | . . . . . Pick Up 30 | 3 5 10 11 1 Fast Attach 11 | 6 2 2 . 1 Attach 6 | . . . . 6 Detach 2 | . 1 1 . . Swap 12 | 1 . 8 2 1 Drop 17 | . . 9 7 1 Fire 47 | 3 14 8 3 19 Melee . | . . . . . Ram . | . . . . . Kick 1 | . . . 1 . Crush . | . . . . . Escape Stasis . | . . . . . Rewire . | . . . . . Trap 3 | . . . 3 . Miscellaneous . | . . . . . Route ------- -11/Scrapyard -10/Materials -9/Materials -9/Mines (discovered 3 exits: [*Mat x2] / [*Zio]) -7/Zion History --------- Turn | Location | Event 2 | -11/Scrapyard | Met Revision 17 63 | -11/Scrapyard | Discovered new exit (range 8) 90 | -11/Scrapyard | Entered Materials 286 | -10/Materials | Discovered new exit (range 4) 296 | -10/Materials | Entered another Materials area 296 | -9/Materials | Evolved 2 slots: Propulsion x1, Utility x1 312 | -9/Materials | Build established: Mutant 440 | -9/Materials | Met 8R-AWN 477 | -9/Materials | Discovered new exit (range 11) 579 | -9/Materials | Entered Mines 579 | -9/Mines | Found a hidden stash of uninstalled traps 581 | -9/Mines | Followed 8R-AWN into the Mines 650 | -9/Mines | Discovered new exit (range 6) 727 | -9/Mines | Discovered new exit (range 7) 845 | -9/Mines | Build established: Scavenger-Mutant 959 | -9/Mines | A weapon hastily lodged in a ceiling crevice suddenly fell to the ground 988 | -9/Mines | Learned 2 Materials zone layouts 1039 | -9/Mines | Assisted by bots powering up and referring to "LRC-V3" 1129 | -9/Mines | A Derelict revealed a hidden shortcut to a safe place 1152 | -9/Mines | Entered Zion 1447 | -7/Zion | Learned location of Armory (-4) 1480 | -7/Zion | Learned Factory trap positions 1741 | -7/Zion | Attacked by Zionites 1757 | -7/Zion | Core integrity fell below 50% 1772 | -7/Zion | Core integrity fell below 20% 1812 | -7/Zion | Lost 9 parts (2p2n1u4w) 1857 | -7/Zion | Destroyed by CO-RO5(z) with Makeshift Sword Last Messages --------------- Destroyed Enh. Flamer. IO-HMV(M) reactivates. IO-HMV(M) destroyed. Mak. Spear destroyed. Enh. Flamer destroyed. Imp. Ion Engine destroyed. FC-BKQ(M) destroyed. R6-YJY(z) pulls a Mak. Hammer out of the Twisted Machinery. M3-L2H(z) emerges from the Twisted Machinery. 7G-PPE(M) destroyed. A strange signal echoes through Zion. Acquired 36 matter. R6-YJY(z) destroyed. Acquired Mak. Leg. 8H-YMU(c) calibrates the Memory Banks. M3-L2H(z) destroyed. 8H-YMU(c) calibrates the Memory Banks. Acquired 25 matter. 8H-YMU(c) calibrates the Memory Banks. I2B,HOR3=VZJ U8|USU4S,I,KNFIDSM7 Map ----- +----------------------------------------------------+ | ?????"""""" """##"#""""" | | ?????"""""" "##""##"""""" | | ?????"""""" ""####""""""" | | ??????"""" ###" ""#?#""" | | ?????" #""" ""#?"#" ! | | ????"""""""""" #""" ""#?#""" "" !% | | ?????""""""""" #""" ""##"#"" "" ! | | ?????###########""" """#?#" | | ???????????######"# ""####" | | ??????????##"""#### ###?#""" | | ??????????#" % % #???#"#" | | ??????????#" /% #????#"" | | ??????????#" #????#"" "" | | ??????????## c ####%% #????#"" "" | | ???????????# c #??######???##""" """ | | ???????##### #####???????#""""" """# | | ???????""""" """""???????#""""" """" | | ?????######" "######?????#"" ""## | | ?????# " " " " #?????##"" "#"# | | ?????# " """ #?????#""" "##" | | ?????#"""" " " #???##"#"" """" | | ?????#""""" """""#???#"""" """" | | ?????#""""" """" #???#""#" | | ?????#" ""z"" ""#????"?#" | | ?????#"" """"z"" " #??????#"" """"" | | ?????#"""""""@"""""" #??????##"""""### | | ?????#"""" """"""""""#???????#"######" | | ?????# " """"" #???????##?????## | | ?????? """""""""""" ????????????????? | | ??????""""""""" """""????????????????? | | ????????? """"" ""???????????????????? | | ????????????""" "????????????????????? | | ??????????????? ????????????????????? | | ?????????????????????????????????????? | | ?????????????????????????????????????? | | ?????????????????????????????????????? | | ?????????????????????????????????????? | | ?????????????????????????????????????? | | ?????????????????????????????????????? | | ?????????????????????????????????????? | | ?????????????????????????????????????? | | ?????????????????????????????????????? | | ?????????????????????????????????????? | | ?????????????????????????????????????? | | ?????????????????????????????????????? | | ?????????????????????????????????????? | | ?????????????????????????????????????? | | ?????????????????????????????????????? | | ?????????????????????????????????????? | | ?????????????????????????????????????? | +----------------------------------------------------+ Best States ------------- Heat Dissipation 35 Energy Generation 12 Energy Capacity 265 Matter Stores 300 Matter Capacity 300 Sight Range 16 Terrain Scan Density 10 Armor Coverage 150 Resistance: KI 20 Resistance: TH 20 Resistance: EX 20 Resistance: EM 20 Resistance: I 20 Resistance: S 20 Resistance: P 20 Propulsion Shielding 33 Evasion (%) 50 Item Schematics ----------------- None Robot Schematics ------------------ None Fabricated ------------ Nothing Alien Tech Used ----------------- None Achievements -------------- Robot Respite Challenges ------------ None Game ------ Seed AccelerationHeartWings Manual? 0 Play Time 00:35:26 Cumulative 10.0 hours Start 2019.10.25 @ 04:36:12 End 2019.10.25 @ 16:42:37 Sessions 3 Manual Loads 0 Difficulty Adventurer Special Mode None Game No. 2 Rogue -2 Adventurer 2 Explorer 0 Win Type - Total 0 Types 0/0/0/0/0/0/0 Lore% 4 Gallery% 11 Achievement% 13 Wizard Run 0 Options --------- ASCII 0 Keyboard 0 Movement Mouse Keybinds 0 Fullscreen 2 Font 18/X11Bold Map View 76x50 Tactical HUD 0 Map Filters NONE Filters NONE Steam 1 RUN: cce826f2-841a-4acc-93a2-c2bb04a7e46b